fUST/lending_fUST_20240226
["ID","MTS","AMOUNT","RATE_DAILY","PERIOD"]
[315181715,1708908643225,-290.34416651,0.00019452,2]
[315181716,1708908643234,-733.84,0.00019452,2]
[315181717,1708908643243,-1415.01,0.00019452,2]
[315181718,1708908643252,-499.60684837,0.00019452,2]
[315181719,1708908643261,-500.0,0.00019452,2]
[315181720,1708908643271,-500.0,0.00019452,2]
[315181721,1708908643280,-634.56249942,0.00019452,2]
[315181722,1708908643290,-500.0,0.00019452,2]
[315181723,1708908643299,-508.98953483,0.00019452,2]
[315181724,1708908643308,-1000.0,0.00019452,2]
[315181725,1708908643318,-500.0,0.00019452,2]
[315181726,1708908643327,-500.0,0.00019452,2]
[315181727,1708908643336,-500.0,0.00019452,2]
[315181728,1708908643345,-500.0,0.00019452,2]
[315181729,1708908643354,-500.62885476,0.00019452,2]
[315181730,1708908643363,-500.0,0.00019452,2]
[315181731,1708908643373,-500.0,0.00019452,2]
[315181732,1708908643382,-500.0,0.00019452,2]
[315181733,1708908643391,-500.0,0.00019452,2]
[315181734,1708908643400,-500.0,0.00019452,2]
[315181735,1708908643409,-500.0,0.00019452,2]
[315181736,1708908643418,-500.0,0.00019452,2]
[315181737,1708908643427,-500.0,0.00019452,2]
[315181738,1708908643436,-500.0,0.00019452,2]
[315181739,1708908643445,-510.22306871,0.00019452,2]
[315181740,1708908643454,-200.85899161,0.00019452,2]
[315181741,1708908643463,-592.55105003,0.00019452,2]
[315181742,1708908643473,-501.27644702,0.00019452,2]
[315181743,1708908643482,-500.0,0.00019452,2]
[315181744,1708908643491,-500.0,0.00019452,2]
[315181745,1708908643500,-500.0,0.00019452,2]
[315181746,1708908643510,-500.0,0.00019452,2]
[315181747,1708908643519,-500.0,0.00019452,2]
[315181748,1708908643528,-500.0,0.00019452,2]
[315181749,1708908643537,-789.38,0.00019452,2]
[315181750,1708908643546,-500.0,0.00019452,2]
[315181751,1708908643555,-500.0,0.00019452,2]
[315181752,1708908643565,-345.59939046,0.00019452,2]
[315181753,1708908643576,-500.0,0.00019452,2]
[315181754,1708908643586,-500.0,0.00019452,2]
[315181755,1708908643595,-617.2,0.00019452,2]
[315181756,1708908643605,-500.0,0.00019452,2]
[315181757,1708908643614,-500.0,0.00019452,2]
[315181758,1708908643623,-500.0,0.00019452,2]
[315181759,1708908643632,-500.0,0.00019452,2]
[315181760,1708908643641,-500.0,0.00019452,2]
[315181761,1708908643650,-500.0,0.00019452,2]
[315181762,1708908643659,-500.0,0.00019452,2]
[315181763,1708908643668,-500.0,0.00019452,2]
[315181764,1708908643677,-500.0,0.00019452,2]
[315181765,1708908643686,-500.0,0.00019452,2]
[315181766,1708908643695,-500.0,0.00019452,2]
[315181767,1708908643704,-500.0,0.00019452,2]
[315181768,1708908643713,-500.0,0.00019452,2]
[315181769,1708908643723,-500.0,0.00019452,2]
[315181770,1708908643733,-500.0,0.00019452,2]
[315181771,1708908643742,-500.0,0.00019452,2]
[315181772,1708908643751,-500.0,0.00019452,2]
[315181773,1708908643760,-500.0,0.00019452,2]
[315181774,1708908643769,-580.33377314,0.00019452,2]
[315181775,1708908643779,-500.0,0.00019452,2]
[315181776,1708908643788,-586.83187142,0.00019452,2]
[315181777,1708908643797,-500.0,0.00019452,2]
[315181778,1708908643806,-500.0,0.00019452,2]
[315181779,1708908643815,-500.0,0.00019452,2]
[315181780,1708908643826,-500.0,0.00019452,2]
[315181781,1708908643835,-500.0,0.00019452,2]
[315181782,1708908643845,-500.0,0.00019452,2]
[315181783,1708908643854,-500.49581509,0.00019452,2]
[315181784,1708908643864,-2171.08,0.00019452,2]
[315181785,1708908643875,-500.0,0.00019452,2]
[315181786,1708908643884,-500.0,0.00019452,2]
[315181787,1708908643893,-500.0,0.00019452,2]
[315181788,1708908643903,-500.0,0.00019452,2]
[315181789,1708908643912,-1258.13,0.00019452,2]
[315181790,1708908643921,-500.0,0.00019452,2]
[315181791,1708908643931,-1685.36,0.00019452,2]
[315181792,1708908643940,-500.0,0.00019452,2]
[315181793,1708908643950,-500.0,0.00019452,2]
[315181794,1708908643961,-500.0,0.00019452,2]
[315181795,1708908643969,-500.0,0.00019452,2]
[315181796,1708908643978,-500.0,0.00019452,2]
[315181797,1708908643987,-502.19470919,0.00019452,2]
[315181798,1708908643996,-500.17034226,0.00019452,2]
[315181799,1708908644005,-500.0,0.00019452,2]
[315181800,1708908644014,-500.0,0.00019452,2]
[315181801,1708908644023,-232.63178787,0.00019452,2]
[315181802,1708908644032,-500.0,0.00019452,2]
[315181803,1708908644040,-500.0,0.00019452,2]
[315181804,1708908644050,-500.0,0.00019452,2]
[315181805,1708908644059,-500.0,0.00019452,2]
[315181806,1708908644069,-500.0,0.00019452,2]
[315181807,1708908644078,-500.0,0.00019452,2]
[315181808,1708908644087,-500.0,0.00019452,2]
[315181809,1708908644096,-500.0,0.00019452,2]
[315181810,1708908644105,-500.0,0.00019452,2]
[315181811,1708908644114,-500.0,0.00019452,2]
[315181812,1708908644123,-719.24,0.00019452,2]
[315181813,1708908644133,-500.0,0.00019452,2]
[315181814,1708908644142,-500.0,0.00019452,2]
[315181815,1708908644151,-500.0,0.00019452,2]
[315181816,1708908644159,-500.0,0.00019452,2]
[315181817,1708908644168,-500.0,0.00019452,2]
[315181818,1708908644177,-500.0,0.00019452,2]
[315181819,1708908644186,-977.42,0.00019452,2]
[315181820,1708908644196,-500.0,0.00019452,2]
[315181821,1708908644205,-312.19112471,0.00019452,2]
[315181822,1708908644214,-500.0,0.00019452,2]
[315181823,1708908644223,-1799.5,0.00019452,2]
[315181824,1708908644232,-500.0,0.00019452,2]
[315181825,1708908644242,-500.0,0.00019452,2]
[315181826,1708908644251,-500.0,0.00019452,2]
[315181827,1708908644260,-500.0,0.00019452,2]
[315181828,1708908644269,-500.0,0.00019452,2]
[315181829,1708908644278,-500.0,0.00019452,2]
[315181830,1708908644287,-500.0,0.00019452,2]
[315181831,1708908644297,-500.0,0.00019452,2]
[315181832,1708908644306,-500.0,0.00019452,2]
[315181833,1708908644315,-640.14797302,0.00019452,2]
[315181834,1708908644326,-2447.62,0.00019452,2]
[315181835,1708908644335,-500.0,0.00019452,2]
[315181836,1708908644345,-500.0,0.00019452,2]
[315181837,1708908644353,-544.51786006,0.00019452,2]
[315181838,1708908644362,-500.0,0.00019452,2]
[315181839,1708908644372,-500.0,0.00019452,2]
[315181840,1708908644381,-500.0,0.00019452,2]
[315181841,1708908644390,-500.0,0.00019452,2]
[315181842,1708908644399,-500.0,0.00019452,2]
[315181843,1708908644409,-500.0,0.00019452,2]
[315181844,1708908644418,-500.0,0.00019452,2]
[315181845,1708908644427,-500.0,0.00019452,2]
[315181846,1708908644437,-501.22711499,0.00019452,2]
[315181847,1708908644446,-741.61,0.00019452,2]
[315181848,1708908644455,-389.05948452,0.00019452,2]
[315181849,1708908644464,-500.0,0.00019452,2]
[315181850,1708908644473,-500.0,0.00019452,2]
[315181851,1708908644482,-500.0,0.00019452,2]
[315181852,1708908644491,-500.0,0.00019452,2]
[315181853,1708908644500,-11468.26,0.00019452,2]
[315181854,1708908644509,-500.0,0.00019452,2]
[315181855,1708908644518,-541.94821274,0.00019452,2]
[315181856,1708908644527,-500.0,0.00019452,2]
[315181857,1708908644537,-4170.58,0.00019452,2]
[315181858,1708908644546,-500.0,0.00019452,2]
[315181859,1708908644558,-500.0,0.00019452,2]
[315181860,1708908644568,-966.78,0.00019452,2]
[315181861,1708908644577,-500.0,0.00019452,2]
[315181862,1708908644587,-500.0,0.00019452,2]
[315181863,1708908644596,-500.0,0.00019452,2]
[315181864,1708908644605,-500.0,0.00019452,2]
[315181865,1708908644615,-500.0,0.00019452,2]
[315181866,1708908644623,-500.0,0.00019452,2]
[315181867,1708908644632,-515.7261257,0.00019452,2]
[315181868,1708908644642,-500.0,0.00019452,2]
[315181869,1708908644650,-500.0,0.00019452,2]
[315181870,1708908644660,-2869.92,0.00019452,2]
[315181871,1708908644669,-500.0,0.00019452,2]
[315181872,1708908644678,-1974.82,0.00019452,2]
[315181873,1708908644688,-2675.87,0.00019452,2]
[315181874,1708908644697,-500.0,0.00019452,2]
[315181875,1708908644706,-500.0,0.00019452,2]
[315181876,1708908644715,-500.0,0.00019452,2]
[315181877,1708908644725,-630.44,0.00019452,2]
[315181878,1708908644734,-640.34440866,0.00019452,2]
[315181879,1708908644743,-500.0,0.00019452,2]
[315181880,1708908644752,-2199.13,0.00019452,2]
[315181881,1708908644761,-500.0,0.00019452,2]
[315181882,1708908644770,-211.99734928,0.00019452,2]
[315181883,1708908644779,-500.0,0.00019452,2]
[315181884,1708908644788,-1000.0,0.00019452,2]
[315181885,1708908644797,-500.0,0.00019452,2]
[315181886,1708908644806,-500.0,0.00019452,2]
[315181887,1708908644815,-500.0,0.00019452,2]
[315181888,1708908644827,-500.0,0.00019452,2]
[315181889,1708908644836,-500.0,0.00019452,2]
[315181890,1708908644845,-500.0,0.00019452,2]
[315181892,1708908644855,-500.0,0.00019452,2]
[315181894,1708908644864,-2020.13,0.00019452,2]
[315181897,1708908644874,-500.0,0.00019452,2]
[315181898,1708908644884,-500.0,0.00019452,2]
[315181899,1708908644894,-500.0,0.00019452,2]
[315181900,1708908644903,-500.0,0.00019452,2]
[315181901,1708908644913,-22115.03,0.00019452,2]
[315181902,1708908644923,-641.23,0.00019452,2]
[315181903,1708908645014,-500.0,0.00019452,2]
[315181904,1708908645024,-500.0,0.00019452,2]
[315181905,1708908645033,-500.0,0.00019452,2]
[315181906,1708908645043,-500.0,0.00019452,2]
[315181907,1708908645051,-500.0,0.00019452,2]
[315181908,1708908645061,-500.0,0.00019452,2]
[315181909,1708908645072,-500.0,0.00019452,2]
[315181910,1708908645081,-500.0,0.00019452,2]
[315181911,1708908645090,-500.0,0.00019452,2]
[315181912,1708908645099,-500.0,0.00019452,2]
[315181913,1708908645108,-500.0,0.00019452,2]
[315181916,1708908645118,-500.0,0.00019452,2]
[315181918,1708908645127,-500.0,0.00019452,2]
[315181919,1708908645136,-500.0,0.00019452,2]
[315181920,1708908645145,-500.0,0.00019452,2]
[315181921,1708908645155,-500.0,0.00019452,2]
[315181922,1708908645164,-2173.86,0.00019452,2]
[315181923,1708908645173,-500.0,0.00019452,2]
[315181924,1708908645182,-500.0,0.00019452,2]
[315181925,1708908645192,-500.0,0.00019452,2]
[315181926,1708908645200,-500.0,0.00019452,2]
[315181928,1708908645210,-501.43563149,0.00019452,2]
[315181930,1708908645218,-500.0,0.00019452,2]
[315181932,1708908645227,-500.0,0.00019452,2]
[315181934,1708908645237,-1727.8,0.00019452,2]
[315181935,1708908645246,-504.30900144,0.00019452,2]
[315181937,1708908645255,-500.0,0.00019452,2]
[315181939,1708908645264,-761.57,0.00019452,2]
[315181941,1708908645273,-500.0,0.00019452,2]
[315181942,1708908645282,-500.0,0.00019452,2]
[315181943,1708908645291,-500.0,0.00019452,2]
[315181944,1708908645300,-8025.44,0.00019452,2]
[315181945,1708908645309,-2412.39,0.00019452,2]
[315181946,1708908645319,-22569.97,0.00019452,2]
[315181947,1708908645328,-11096.47,0.00019452,2]
[315181948,1708908645337,-500.0,0.00019452,2]
[315181949,1708908645346,-500.0,0.00019452,2]
[315181950,1708908645356,-500.0,0.00019452,2]
[315181951,1708908645366,-500.0,0.00019452,2]
[315181952,1708908645375,-500.53936311,0.00019452,2]
[315181953,1708908645384,-586.26,0.00019452,2]
[315181954,1708908645393,-500.0,0.00019452,2]
[315181955,1708908645402,-500.0,0.00019452,2]
[315181956,1708908645412,-500.0,0.00019452,2]
[315181957,1708908645422,-500.0,0.00019452,2]
[315181958,1708908645432,-3049.49,0.00019452,2]
[315181959,1708908645441,-3160.82,0.00019452,2]
[315181960,1708908645451,-500.0,0.00019452,2]
[315181961,1708908645460,-500.0,0.00019452,2]
[315181962,1708908645469,-500.0,0.00019452,2]
[315181963,1708908645479,-500.0,0.00019452,2]
[315181964,1708908645490,-500.0,0.00019452,2]
[315181965,1708908645499,-1233.15,0.00019452,2]
[315181966,1708908645509,-1444.76,0.00019452,2]
[315181967,1708908645519,-500.0,0.00019452,2]
[315181968,1708908645529,-4416.58,0.00019452,2]
[315181969,1708908645538,-420.68246109,0.00019452,2]
[315181970,1708908645548,-500.0,0.00019452,2]
[315181971,1708908645557,-3094.09,0.00019452,2]
[315181972,1708908645566,-1714.83,0.00019452,2]
[315181973,1708908645578,-1453.17,0.00019452,2]
[315181974,1708908645587,-500.0,0.00019452,2]
[315181975,1708908645596,-500.0,0.00019452,2]
[315181976,1708908645606,-500.0,0.00019452,2]
[315181977,1708908645615,-500.0,0.00019452,2]
[315181978,1708908645625,-7321.61669943,0.00019463,2]
[315181979,1708908645635,-182.51135653,0.00019473,2]
[315181980,1708908645644,-182.51135653,0.00019484,2]
[315181981,1708908645653,-7321.61669943,0.00019492,2]
[315181982,1708908645662,-182.51135653,0.00019495,2]
[315181983,1708908645672,-7321.61669943,0.00019498,2]
[315181984,1708908645681,-1002.29934527,0.00019526,2]
[315181985,1708908645690,-5506.85853467,0.000196,2]
[315181986,1708908645698,-166.666666,0.00019627,2]
[315181987,1708908645707,-153.0,0.00019644,2]
[315181988,1708908645717,-153.0,0.00019644,2]
[315181989,1708908645726,-5523.32487849,0.000197,2]
[315181990,1708908645735,-5523.32487849,0.000197,2]
[315181991,1708908645744,-5523.32487849,0.000197,2]
[315181992,1708908645754,-500.0,0.00019725,2]
[315181993,1708908645763,-500.0,0.00019725,2]
[315181994,1708908645772,-500.0,0.00019725,2]
[315181995,1708908645782,-500.0,0.00019725,2]
[315181996,1708908645791,-322.02967842,0.00019725,2]
[315181997,1708908645800,-500.0,0.00019726,2]
[315181998,1708908645810,-500.0,0.00019726,2]
[315181999,1708908645819,-509.9,0.00019726,2]
[315182000,1708908645828,-151.0,0.00019726,2]
[315182001,1708908645837,-500.0,0.00019726,2]
[315182002,1708908645845,-500.0,0.00019726,2]
[315182003,1708908645855,-733.84,0.00019726,2]
[315182004,1708908645866,-1415.01,0.00019726,2]
[315182006,1708908645875,-500.0,0.00019726,2]
[315182008,1708908645883,-500.0,0.00019726,2]
[315182009,1708908645891,-500.0,0.00019726,2]
[315182010,1708908645901,-1004.11866743,0.00019726,2]
[315182011,1708908645912,-500.0,0.00019726,2]
[315182012,1708908645921,-500.0,0.00019726,2]
[315182013,1708908645930,-500.0,0.00019726,2]
[315182015,1708908645939,-500.0,0.00019726,2]
[315182017,1708908645948,-500.0,0.00019726,2]
[315182018,1708908645958,-500.0,0.00019726,2]
[315182019,1708908645966,-500.0,0.00019726,2]
[315182020,1708908645975,-614.95785219,0.00019726,2]
[315182021,1708908645984,-500.0,0.00019726,2]
[315182023,1708908645993,-500.0,0.00019726,2]
[315182024,1708908646002,-500.0,0.00019726,2]
[315182025,1708908646011,-500.0,0.00019726,2]
[315182026,1708908646021,-500.0,0.00019726,2]
[315182027,1708908646030,-500.0,0.00019726,2]
[315182028,1708908646039,-500.0,0.00019726,2]
[315182029,1708908646048,-476.97605386,0.00019726,2]
[315182030,1708908646057,-500.0,0.00019726,2]
[315182031,1708908646068,-500.0,0.00019726,2]
[315182032,1708908646078,-500.0,0.00019726,2]
[315182033,1708908646087,-789.38,0.00019726,2]
[315182034,1708908646096,-500.0,0.00019726,2]
[315182036,1708908646105,-500.0,0.00019726,2]
[315182037,1708908646114,-255.63018789,0.00019726,2]
[315182038,1708908646123,-500.0,0.00019726,2]
[315182039,1708908646132,-617.2,0.00019726,2]
[315182040,1708908646141,-500.0,0.00019726,2]
[315182041,1708908646151,-532.85367044,0.00019726,2]
[315182042,1708908646160,-500.0,0.00019726,2]
[315182043,1708908646169,-628.2899227,0.00019726,2]
[315182044,1708908646178,-500.0,0.00019726,2]
[315182045,1708908646187,-503.59319425,0.00019726,2]
[315182046,1708908646196,-500.0,0.00019726,2]
[315182047,1708908646206,-500.0,0.00019726,2]
[315182048,1708908646215,-500.0,0.00019726,2]
[315182049,1708908646225,-500.0,0.00019726,2]
[315182050,1708908646234,-500.0,0.00019726,2]
[315182051,1708908646243,-530.97986716,0.00019726,2]
[315182052,1708908646253,-500.0,0.00019726,2]
[315182053,1708908646262,-500.0,0.00019726,2]
[315182054,1708908646271,-500.0,0.00019726,2]
[315182055,1708908646280,-500.0,0.00019726,2]
[315182056,1708908646290,-500.0,0.00019726,2]
[315182057,1708908646299,-500.0,0.00019726,2]
[315182058,1708908646308,-500.0,0.00019726,2]
[315182059,1708908646318,-500.0,0.00019726,2]
[315182060,1708908646328,-2171.08,0.00019726,2]
[315182061,1708908646337,-500.0,0.00019726,2]
[315182062,1708908646347,-487.22362763,0.00019726,2]
[315182063,1708908646356,-1258.13,0.00019726,2]
[315182064,1708908646365,-500.0,0.00019726,2]
[315182065,1708908646375,-1685.36,0.00019726,2]
[315182066,1708908646384,-500.0,0.00019726,2]
[315182067,1708908646393,-500.0,0.00019726,2]
[315182068,1708908646402,-500.90622344,0.00019726,2]
[315182069,1708908646411,-500.0,0.00019726,2]
[315182070,1708908646421,-500.0,0.00019726,2]
[315182071,1708908646430,-500.0,0.00019726,2]
[315182072,1708908646439,-500.0,0.00019726,2]
[315182073,1708908646448,-500.0,0.00019726,2]
[315182074,1708908646458,-500.0,0.00019726,2]
[315182075,1708908646467,-500.0,0.00019726,2]
[315182076,1708908646476,-500.0,0.00019726,2]
[315182077,1708908646486,-500.0,0.00019726,2]
[315182078,1708908646495,-500.0,0.00019726,2]
[315182079,1708908646504,-500.0,0.00019726,2]
[315182080,1708908646513,-405.33060812,0.00019726,2]
[315182081,1708908646522,-500.0,0.00019726,2]
[315182082,1708908646531,-500.0,0.00019726,2]
[315182083,1708908646540,-719.24,0.00019726,2]
[315182084,1708908646549,-500.0,0.00019726,2]
[315182085,1708908646558,-500.0,0.00019726,2]
[315182086,1708908646568,-500.0,0.00019726,2]
[315182087,1708908646577,-500.0,0.00019726,2]
[315182088,1708908646586,-500.0,0.00019726,2]
[315182089,1708908646595,-500.0,0.00019726,2]
[315182090,1708908646604,-977.42,0.00019726,2]
[315182091,1708908646613,-500.0,0.00019726,2]
[315182092,1708908646622,-1799.5,0.00019726,2]
[315182093,1708908646631,-500.0,0.00019726,2]
[315182094,1708908646640,-500.0,0.00019726,2]
[315182095,1708908646650,-500.0,0.00019726,2]
[315182096,1708908646659,-500.0,0.00019726,2]
[315182097,1708908646667,-500.0,0.00019726,2]
[315182098,1708908646677,-500.0,0.00019726,2]
[315182099,1708908646686,-500.0,0.00019726,2]
[315182100,1708908646695,-2447.62,0.00019726,2]
[315182101,1708908646704,-500.0,0.00019726,2]
[315182102,1708908646713,-500.0,0.00019726,2]
[315182103,1708908646722,-439.43556303,0.00019726,2]
[315182104,1708908646732,-500.39052972,0.00019726,2]
[315182105,1708908646741,-500.0,0.00019726,2]
[315182106,1708908646750,-500.0,0.00019726,2]
[315182107,1708908646759,-500.76231517,0.00019726,2]
[315182108,1708908646846,-500.0,0.00019726,2]
[315182109,1708908646856,-500.0,0.00019726,2]
[315182110,1708908646865,-500.0,0.00019726,2]
[315182111,1708908646876,-741.61,0.00019726,2]
[315182112,1708908646885,-500.0,0.00019726,2]
[315182113,1708908646895,-497.77855234,0.00019726,2]
[315182114,1708908646904,-500.0,0.00019726,2]
[315182115,1708908646913,-11468.26,0.00019726,2]
[315182116,1708908646922,-500.0,0.00019726,2]
[315182117,1708908646931,-500.0,0.00019726,2]
[315182118,1708908646940,-4170.58,0.00019726,2]
[315182119,1708908646950,-500.0,0.00019726,2]
[315182120,1708908646959,-966.78,0.00019726,2]
[315182121,1708908646969,-500.0,0.00019726,2]
[315182122,1708908646978,-500.0,0.00019726,2]
[315182123,1708908646987,-501.38504518,0.00019726,2]
[315182124,1708908646996,-500.0,0.00019726,2]
[315182125,1708908647004,-485.95883318,0.00019726,2]
[315182126,1708908647013,-500.0,0.00019726,2]
[315182127,1708908647022,-500.0,0.00019726,2]
[315182128,1708908647032,-2869.92,0.00019726,2]
[315182129,1708908647041,-500.0,0.00019726,2]
[315182130,1708908647051,-1974.82,0.00019726,2]
[315182131,1708908647061,-2675.87,0.00019726,2]
[315182132,1708908647070,-500.0,0.00019726,2]
[315182133,1708908647079,-248.03889364,0.00019726,2]
[315182134,1708908647089,-500.0,0.00019726,2]
[315182135,1708908647098,-630.44,0.00019726,2]
[315182136,1708908647108,-500.0,0.00019726,2]
[315182137,1708908647117,-2199.13,0.00019726,2]
[315182138,1708908647127,-500.0,0.00019726,2]
[315182139,1708908647137,-500.0,0.00019726,2]
[315182140,1708908647146,-1000.0,0.00019726,2]
[315182141,1708908647156,-500.0,0.00019726,2]
[315182142,1708908647165,-500.0,0.00019726,2]
[315182143,1708908647175,-500.0,0.00019726,2]
[315182144,1708908647184,-500.0,0.00019726,2]
[315182145,1708908647193,-2020.13,0.00019726,2]
[315182146,1708908647203,-500.0,0.00019726,2]
[315182147,1708908647212,-500.0,0.00019726,2]
[315182148,1708908647222,-500.0,0.00019726,2]
[315182149,1708908647232,-500.0,0.00019726,2]
[315182150,1708908647241,-22115.03,0.00019726,2]
[315182151,1708908647251,-641.23,0.00019726,2]
[315182152,1708908647261,-500.0,0.00019726,2]
[315182153,1708908647270,-500.0,0.00019726,2]
[315182154,1708908647279,-500.0,0.00019726,2]
[315182155,1708908647288,-500.0,0.00019726,2]
[315182156,1708908647296,-500.0,0.00019726,2]
[315182157,1708908647306,-500.0,0.00019726,2]
[315182158,1708908647315,-500.0,0.00019726,2]
[315182159,1708908647324,-500.0,0.00019726,2]
[315182160,1708908647333,-500.0,0.00019726,2]
[315182161,1708908647343,-500.0,0.00019726,2]
[315182162,1708908647352,-500.0,0.00019726,2]
[315182163,1708908647361,-500.0,0.00019726,2]
[315182164,1708908647370,-500.0,0.00019726,2]
[315182165,1708908647379,-500.92520509,0.00019726,2]
[315182166,1708908647389,-2173.86,0.00019726,2]
[315182167,1708908647398,-500.0,0.00019726,2]
[315182168,1708908647407,-500.92354226,0.00019726,2]
[315182169,1708908647416,-500.0,0.00019726,2]
[315182170,1708908647426,-1727.8,0.00019726,2]
[315182171,1708908647436,-500.0,0.00019726,2]
[315182172,1708908647445,-761.57,0.00019726,2]
[315182173,1708908647454,-209.1137891,0.00019726,2]
[315182174,1708908647463,-500.0,0.00019726,2]
[315182175,1708908647472,-500.0,0.00019726,2]
[315182176,1708908647481,-8025.44,0.00019726,2]
[315182177,1708908647490,-2412.39,0.00019726,2]
[315182178,1708908647499,-22569.97,0.00019726,2]
[315182179,1708908647509,-11096.47,0.00019726,2]
[315182180,1708908647518,-500.0,0.00019726,2]
[315182181,1708908647527,-500.0,0.00019726,2]
[315182182,1708908647537,-502.05058495,0.00019726,2]
[315182183,1708908647546,-500.0,0.00019726,2]
[315182184,1708908647555,-586.26,0.00019726,2]
[315182185,1708908647564,-500.0,0.00019726,2]
[315182186,1708908647574,-500.0,0.00019726,2]
[315182187,1708908647584,-500.0,0.00019726,2]
[315182188,1708908647593,-3049.49,0.00019726,2]
[315182189,1708908647602,-3160.82,0.00019726,2]
[315182190,1708908647611,-500.0,0.00019726,2]
[315182191,1708908647620,-500.0,0.00019726,2]
[315182192,1708908647629,-500.0,0.00019726,2]
[315182193,1708908647638,-500.0,0.00019726,2]
[315182194,1708908647647,-500.6752788,0.00019726,2]
[315182195,1708908647656,-1233.15,0.00019726,2]
[315182196,1708908647670,-1444.76,0.00019726,2]
[315182197,1708908647686,-500.0,0.00019726,2]
[315182198,1708908647700,-4416.58,0.00019726,2]
[315182199,1708908647711,-330.48068268,0.00019726,2]
[315182200,1708908647725,-3094.09,0.00019726,2]
[315182201,1708908647739,-1714.83,0.00019726,2]
[315182202,1708908647753,-1453.17,0.00019726,2]
[315182203,1708908647767,-500.0,0.00019726,2]
[315182204,1708908647781,-589.92596995,0.00019726,2]
[315182205,1708908647792,-500.0,0.00019726,2]
[315182206,1708908647806,-500.0,0.00019726,2]
[315182207,1708908647819,-213.02714965,0.00019998,2]
[315182208,1708908647832,-234.13825762,0.00019998,2]
[315182209,1708908647845,-1448.31818436,0.00019998,2]
[315182210,1708908647858,-1412.29479491,0.00019998,2]
[315182211,1708908647869,-625.44826244,0.00019998,2]
[315182212,1708908647886,-677.415638,0.00019999,2]
[315182213,1708908647899,-216.50744666,0.00019999,2]
[315182214,1708908647912,-500.0,0.00019999,2]
[315182215,1708908647924,-500.0,0.00019999,2]
[315182216,1708908647937,-500.0,0.00019999,2]
[315182217,1708908647950,-319.09963093,0.00019999,2]
[315182218,1708908647965,-712978.26215105,0.0002,2]
[315182219,1708908648143,-2936.8811519,0.0002,2]
[315182220,1708908648223,-3091.43190287,0.0002,2]
[315182221,1708908648237,-3557.72317711,0.0002,2]
[315182222,1708908648439,-7162.631015,0.0002,2]
[315182223,1708908648451,-2867.08825522,0.0002,2]
[315182224,1708908648463,-2885.86585161,0.0002,2]
[315182225,1708908648488,-1567.96,0.0002,2]
[315182226,1708908648499,-8601.66651702,0.0002,2]
[315182227,1708908648511,-1843.95787025,0.0002,2]
[315182228,1708908648524,-462.5759972,0.0002,2]
[315182229,1708908648535,-10211.5384578,0.0002,2]
[315182233,1708908725628,1097.2,0.000182,2]
[315182342,1708909841377,-1327.58557632,0.00018872,2]
[315182343,1708909841387,-640.11979573,0.00018873,2]
[315182344,1708909841396,-155.0418613,0.00018874,2]
[315182345,1708909841405,-155.0418613,0.00018875,2]